[Event "Titled Tuesday Blitz February 14 Late 2023"]
[White "Fernandez Guillen, Ernesto J."]
[Black "Perez Ponsa, Federico"]
[WhiteFideId "3512428"]
[BlackFideId "117927"]
[WhiteElo "2477"]
[BlackElo "2532"]
[Result "0-1"]
[Round "07"]
[TimeControl "180+2"]
[Date "2023.02.14"]
[WhiteClock "0:00:04"]
[BlackClock "0:00:06"]

1. e4 {[%clk 0:02:55]}  c5 {[%clk 0:03:00]} 2. Nf3 {[%clk 0:02:52]}  d6 {[%clk 0:03:01]} 3. d3 {[%clk 0:02:51]}  Nc6 {[%clk 0:03:00]} 4. Nc3 {[%clk 0:02:51]}  g6 {[%clk 0:03:01]} 5. g3 {[%clk 0:02:51]}  Bg7 {[%clk 0:03:01]} 6. Bg2 {[%clk 0:02:52]}  e5 {[%clk 0:03:02]} 7. O-O {[%clk 0:02:53]}  Nge7 {[%clk 0:03:02]} 8. Nd2 {[%clk 0:02:53]}  O-O {[%clk 0:03:00]} 9. f4 {[%clk 0:02:53]}  exf4 {[%clk 0:02:58]} 10. gxf4 {[%clk 0:02:54]}  f5 {[%clk 0:02:58]} 11. Nc4 {[%clk 0:02:50]}  Be6 {[%clk 0:02:57]} 12. Ne3 {[%clk 0:02:50]}  Qd7 {[%clk 0:02:56]} 13. Kh1 {[%clk 0:02:47]}  Rae8 {[%clk 0:02:56]} 14. Bd2 {[%clk 0:02:37]}  fxe4 {[%clk 0:02:56]} 15. dxe4 {[%clk 0:02:38]}  Bh3 {[%clk 0:02:53]} 16. Qf3 {[%clk 0:02:35]}  Bxg2+ {[%clk 0:02:53]} 17. Qxg2 {[%clk 0:02:36]}  Nd4 {[%clk 0:02:51]} 18. Rad1 {[%clk 0:02:34]}  Kh8 {[%clk 0:02:50]} 19. Bc1 {[%clk 0:02:34]}  Qe6 {[%clk 0:02:48]} 20. Rde1 {[%clk 0:02:30]}  Qf7 {[%clk 0:02:37]} 21. Ncd5 {[%clk 0:02:28]}  Nxd5 {[%clk 0:02:36]} 22. Nxd5 {[%clk 0:02:29]}  Nc6 {[%clk 0:02:34]} 23. f5 {[%clk 0:02:12]}  gxf5 {[%clk 0:02:23]} 24. Bd2 {[%clk 0:01:54]}  Qg6 {[%clk 0:02:04]} 25. exf5 {[%clk 0:01:53]}  Rxe1 {[%clk 0:01:53]} 26. Rxe1 {[%clk 0:01:43]}  Qxg2+ {[%clk 0:01:42]} 27. Kxg2 {[%clk 0:01:44]}  Rxf5 {[%clk 0:01:42]} 28. Re8+ {[%clk 0:01:35]}  Rf8 {[%clk 0:01:42]} 29. Re6 {[%clk 0:01:34]}  Be5 {[%clk 0:01:40]} 30. Bc3 {[%clk 0:01:22]}  Kg7 {[%clk 0:01:30]} 31. Rxd6 {[%clk 0:01:13]}  Nd4 {[%clk 0:01:17]} 32. Bxd4 {[%clk 0:00:59]}  cxd4 {[%clk 0:01:09]} 33. Re6 {[%clk 0:00:59]}  Bb8 {[%clk 0:01:03]} 34. Re4 {[%clk 0:00:48]}  Rc8 {[%clk 0:01:04]} 35. Re7+ {[%clk 0:00:40]}  Kg6 {[%clk 0:01:04]} 36. Re2 {[%clk 0:00:41]}  Rd8 {[%clk 0:00:57]} 37. Nb4 {[%clk 0:00:40]}  Bd6 {[%clk 0:00:50]} 38. Nd3 {[%clk 0:00:41]}  Kf5 {[%clk 0:00:49]} 39. Kf3 {[%clk 0:00:40]}  Rg8 {[%clk 0:00:48]} 40. a3 {[%clk 0:00:23]}  h5 {[%clk 0:00:45]} 41. b4 {[%clk 0:00:18]}  a6 {[%clk 0:00:41]} 42. Re4 {[%clk 0:00:17]}  Bxh2 {[%clk 0:00:40]} 43. Rxd4 {[%clk 0:00:17]}  Rg3+ {[%clk 0:00:39]} 44. Kf2 {[%clk 0:00:10]}  Bg1+ {[%clk 0:00:22]} 45. Kxg3 {[%clk 0:00:10]}  Bxd4 {[%clk 0:00:22]} 46. Kh4 {[%clk 0:00:11]}  Ke4 {[%clk 0:00:23]} 47. Kxh5 {[%clk 0:00:11]}  Kd5 {[%clk 0:00:21]} 48. Kg4 {[%clk 0:00:11]}  Kc4 {[%clk 0:00:22]} 49. Kf3 {[%clk 0:00:12]}  Kc3 {[%clk 0:00:22]} 50. Ke4 {[%clk 0:00:12]}  Bg1 {[%clk 0:00:20]} 51. Kd5 {[%clk 0:00:07]}  Kxc2 {[%clk 0:00:19]} 52. Ne5 {[%clk 0:00:02]}  Kb3 {[%clk 0:00:17]} 53. Nf3 {[%clk 0:00:02]}  Be3 {[%clk 0:00:15]} 54. Kd6 {[%clk 0:00:02]}  Kxa3 {[%clk 0:00:10]} 55. Kc7 {[%clk 0:00:02]}  Kxb4 {[%clk 0:00:04]} 56. Kxb7 {[%clk 0:00:03]}  a5 {[%clk 0:00:05]} 57. Ne5 {[%clk 0:00:03]}  a4 {[%clk 0:00:05]} 58. Nd3+ {[%clk 0:00:01]}  Kc3 {[%clk 0:00:03]} 59. Nc5 {[%clk 0:00:02]}  Bxc5 {[%clk 0:00:03]} 60. Kc6 {[%clk 0:00:03]}  a3 {[%clk 0:00:04]} 61. Kxc5 {[%clk 0:00:03]}  a2 {[%clk 0:00:05]} 62. Kd5 {[%clk 0:00:04]}  a1=Q {[%clk 0:00:06]} 0-1


[Site "https://www.chess.com"]

[Event "Titled Tuesday Blitz February 14 Late 2023"]
[White "Barp, Alberto"]
[Black "Naroditsky, Daniel"]
[WhiteFideId "872555"]
[BlackFideId "2026961"]
[WhiteElo "2432"]
[BlackElo "2618"]
[Result "0-1"]
[Round "07"]
[TimeControl "180+2"]
[Date "2023.02.14"]
[WhiteClock "0:00:07"]
[BlackClock "0:00:08"]

1. d4 {[%clk 0:03:00]}  Nf6 {[%clk 0:02:58]} 2. Nf3 {[%clk 0:02:58]}  g6 {[%clk 0:02:59]} 3. g3 {[%clk 0:02:57]}  Bg7 {[%clk 0:02:59]} 4. Bg2 {[%clk 0:02:57]}  O-O {[%clk 0:03:00]} 5. O-O {[%clk 0:02:56]}  d6 {[%clk 0:03:01]} 6. b3 {[%clk 0:02:55]}  c5 {[%clk 0:03:01]} 7. c4 {[%clk 0:02:54]}  cxd4 {[%clk 0:02:59]} 8. Nxd4 {[%clk 0:02:55]}  d5 {[%clk 0:03:00]} 9. cxd5 {[%clk 0:02:46]}  Nxd5 {[%clk 0:03:01]} 10. Bb2 {[%clk 0:02:46]}  Nb4 {[%clk 0:02:59]} 11. Qd2 {[%clk 0:02:39]}  Qb6 {[%clk 0:02:52]} 12. Na3 {[%clk 0:02:33]}  Rd8 {[%clk 0:02:38]} 13. Nc4 {[%clk 0:02:25]}  Qc5 {[%clk 0:02:37]} 14. e3 {[%clk 0:01:22]}  N8c6 {[%clk 0:02:36]} 15. Rfc1 {[%clk 0:00:49]}  e5 {[%clk 0:02:01]} 16. a3 {[%clk 0:00:24]}  exd4 {[%clk 0:01:40]} 17. axb4 {[%clk 0:00:23]}  Qe7 {[%clk 0:01:21]} 18. Bxc6 {[%clk 0:00:06]}  bxc6 {[%clk 0:01:06]} 19. Bxd4 {[%clk 0:00:06]}  Bh3 {[%clk 0:01:03]} 20. f3 {[%clk 0:00:06]}  Rd5 {[%clk 0:00:55]} 21. Kf2 {[%clk 0:00:06]}  Rad8 {[%clk 0:00:54]} 22. Re1 {[%clk 0:00:06]}  Qg5 {[%clk 0:00:46]} 23. Rad1 {[%clk 0:00:06]}  h5 {[%clk 0:00:33]} 24. Qb2 {[%clk 0:00:05]}  Qf5 {[%clk 0:00:21]} 25. e4 {[%clk 0:00:04]}  Rxd4 {[%clk 0:00:21]} 26. Rxd4 {[%clk 0:00:03]}  Bxd4+ {[%clk 0:00:15]} 27. Qxd4 {[%clk 0:00:03]}  Rxd4 {[%clk 0:00:05]} 28. exf5 {[%clk 0:00:04]}  Bxf5 {[%clk 0:00:06]} 29. Ra1 {[%clk 0:00:04]}  Rd3 {[%clk 0:00:06]} 30. Rxa7 {[%clk 0:00:04]}  Rxb3 {[%clk 0:00:06]} 31. Nd6 {[%clk 0:00:04]}  Be6 {[%clk 0:00:06]} 32. Rb7 {[%clk 0:00:04]}  Bd5 {[%clk 0:00:06]} 33. Ne4 {[%clk 0:00:04]}  Rb2+ {[%clk 0:00:04]} 34. Ke3 {[%clk 0:00:04]}  Kg7 {[%clk 0:00:02]} 35. h4 {[%clk 0:00:03]}  c5 {[%clk 0:00:03]} 36. Rd7 {[%clk 0:00:02]}  Bxe4 {[%clk 0:00:04]} 37. Kxe4 {[%clk 0:00:02]}  cxb4 {[%clk 0:00:04]} 38. Rb7 {[%clk 0:00:02]}  b3 {[%clk 0:00:04]} 39. g4 {[%clk 0:00:03]}  hxg4 {[%clk 0:00:03]} 40. fxg4 {[%clk 0:00:04]}  Rb1 {[%clk 0:00:04]} 41. Kf3 {[%clk 0:00:04]}  Kf8 {[%clk 0:00:03]} 42. g5 {[%clk 0:00:05]}  Ke8 {[%clk 0:00:03]} 43. Kg2 {[%clk 0:00:05]}  b2 {[%clk 0:00:03]} 44. Kh2 {[%clk 0:00:05]}  Kd8 {[%clk 0:00:03]} 45. Kg2 {[%clk 0:00:04]}  Kc8 {[%clk 0:00:04]} 46. Rb3 {[%clk 0:00:04]}  Kd7 {[%clk 0:00:05]} 47. Rb7+ {[%clk 0:00:04]}  Ke6 {[%clk 0:00:05]} 48. Rb3 {[%clk 0:00:05]}  Kf5 {[%clk 0:00:06]} 49. Rb5+ {[%clk 0:00:05]}  Kg4 {[%clk 0:00:06]} 50. Rb4+ {[%clk 0:00:05]}  Kh5 {[%clk 0:00:07]} 51. Kh2 {[%clk 0:00:05]}  Rf1 {[%clk 0:00:05]} 52. Rxb2 {[%clk 0:00:06]}  Kxh4 {[%clk 0:00:05]} 53. Rb5 {[%clk 0:00:06]}  Rf2+ {[%clk 0:00:04]} 54. Kg1 {[%clk 0:00:06]}  Rf5 {[%clk 0:00:05]} 55. Rxf5 {[%clk 0:00:03]}  gxf5 {[%clk 0:00:06]} 56. Kf2 {[%clk 0:00:04]}  Kxg5 {[%clk 0:00:06]} 57. Kg3 {[%clk 0:00:04]}  f4+ {[%clk 0:00:06]} 58. Kf3 {[%clk 0:00:05]}  Kf5 {[%clk 0:00:07]} 59. Kf2 {[%clk 0:00:06]}  Kg4 {[%clk 0:00:08]} 60. Ke2 {[%clk 0:00:07]}  Kg3 {[%clk 0:00:08]} 61. Kf1 {[%clk 0:00:07]}  Kf3 {[%clk 0:00:08]} 0-1


[Site "https://www.chess.com"]

[Event "Titled Tuesday Blitz February 14 Late 2023"]
[White "Remizov, Yaroslav"]
[Black "Deac, Bogdan-Daniel"]
[WhiteFideId "34134015"]
[BlackFideId "1226380"]
[WhiteElo "2421"]
[BlackElo "2700"]
[Result "0-1"]
[Round "07"]
[TimeControl "180+2"]
[Date "2023.02.14"]
[WhiteClock "0:00:02"]
[BlackClock "0:00:16"]

1. e4 {[%clk 0:03:00]}  c6 {[%clk 0:02:59]} 2. d4 {[%clk 0:02:59]}  d5 {[%clk 0:03:00]} 3. Nc3 {[%clk 0:02:59]}  a6 {[%clk 0:03:00]} 4. h4 {[%clk 0:02:52]}  dxe4 {[%clk 0:02:37]} 5. Nxe4 {[%clk 0:02:51]}  Nf6 {[%clk 0:02:38]} 6. Nxf6+ {[%clk 0:02:49]}  exf6 {[%clk 0:02:39]} 7. Bd3 {[%clk 0:02:12]}  Bd6 {[%clk 0:02:30]} 8. Qh5 {[%clk 0:02:02]}  Be6 {[%clk 0:02:19]} 9. Ne2 {[%clk 0:01:55]}  Qc7 {[%clk 0:02:18]} 10. c4 {[%clk 0:01:50]}  Nd7 {[%clk 0:02:02]} 11. c5 {[%clk 0:01:27]}  Be7 {[%clk 0:01:57]} 12. Bf4 {[%clk 0:01:06]}  Qd8 {[%clk 0:01:52]} 13. O-O-O {[%clk 0:01:02]}  f5 {[%clk 0:01:44]} 14. Nc3 {[%clk 0:00:54]}  Nf6 {[%clk 0:01:42]} 15. Qf3 {[%clk 0:00:49]}  O-O {[%clk 0:01:02]} 16. Be5 {[%clk 0:00:43]}  Qd7 {[%clk 0:00:58]} 17. h5 {[%clk 0:00:33]}  Ng4 {[%clk 0:00:57]} 18. Kb1 {[%clk 0:00:25]}  Rad8 {[%clk 0:00:51]} 19. h6 {[%clk 0:00:25]}  Nxe5 {[%clk 0:00:43]} 20. dxe5 {[%clk 0:00:24]}  g6 {[%clk 0:00:43]} 21. Bc4 {[%clk 0:00:14]}  Qc8 {[%clk 0:00:36]} 22. Bxe6 {[%clk 0:00:06]}  Qxe6 {[%clk 0:00:37]} 23. Qe3 {[%clk 0:00:06]}  Qc4 {[%clk 0:00:36]} 24. Rd6 {[%clk 0:00:04]}  Bxd6 {[%clk 0:00:24]} 25. cxd6 {[%clk 0:00:05]}  Rfe8 {[%clk 0:00:22]} 26. f4 {[%clk 0:00:05]}  Rxd6 {[%clk 0:00:19]} 27. g4 {[%clk 0:00:03]}  Rd3 {[%clk 0:00:17]} 28. Qe2 {[%clk 0:00:02]}  Rxc3 {[%clk 0:00:17]} 29. Qd2 {[%clk 0:00:02]}  Qe4+ {[%clk 0:00:16]} 0-1


[Site "https://www.chess.com"]

[Event "Titled Tuesday Blitz February 14 Late 2023"]
[White "Sanal, Vahap"]
[Black "Li, Ruifeng"]
[WhiteFideId "6300545"]
[BlackFideId "2061074"]
[WhiteElo "2600"]
[BlackElo "2541"]
[Result "1-0"]
[Round "07"]
[TimeControl "180+2"]
[Date "2023.02.14"]
[WhiteClock "0:00:06"]
[BlackClock "0:00:02"]

1. Nf3 {[%clk 0:02:57]}  d6 {[%clk 0:02:59]} 2. d4 {[%clk 0:02:56]}  g6 {[%clk 0:02:59]} 3. e4 {[%clk 0:02:56]}  Bg7 {[%clk 0:03:00]} 4. Nc3 {[%clk 0:02:55]}  Nf6 {[%clk 0:03:00]} 5. h3 {[%clk 0:02:53]}  Nc6 {[%clk 0:03:01]} 6. d5 {[%clk 0:02:52]}  Nb8 {[%clk 0:03:00]} 7. Bc4 {[%clk 0:02:51]}  O-O {[%clk 0:03:00]} 8. O-O {[%clk 0:02:51]}  c6 {[%clk 0:03:00]} 9. a4 {[%clk 0:02:51]}  b6 {[%clk 0:03:01]} 10. Re1 {[%clk 0:02:49]}  Bb7 {[%clk 0:03:01]} 11. Bg5 {[%clk 0:02:46]}  Nbd7 {[%clk 0:02:59]} 12. Qd2 {[%clk 0:02:46]}  a6 {[%clk 0:02:38]} 13. Bh6 {[%clk 0:02:40]}  b5 {[%clk 0:02:36]} 14. Bxg7 {[%clk 0:02:39]}  Kxg7 {[%clk 0:02:35]} 15. dxc6 {[%clk 0:02:40]}  Bxc6 {[%clk 0:02:35]} 16. axb5 {[%clk 0:02:40]}  axb5 {[%clk 0:02:36]} 17. Rxa8 {[%clk 0:02:24]}  Qxa8 {[%clk 0:02:36]} 18. Bxb5 {[%clk 0:02:25]}  Bxb5 {[%clk 0:02:27]} 19. Nxb5 {[%clk 0:02:26]}  Nxe4 {[%clk 0:02:27]} 20. Qd4+ {[%clk 0:02:21]}  Ndf6 {[%clk 0:02:27]} 21. c4 {[%clk 0:02:11]}  Qc6 {[%clk 0:02:23]} 22. b3 {[%clk 0:02:06]}  Ra8 {[%clk 0:02:22]} 23. Nd2 {[%clk 0:01:34]}  e5 {[%clk 0:02:06]} 24. Qe3 {[%clk 0:01:33]}  Nxd2 {[%clk 0:01:45]} 25. Qxd2 {[%clk 0:01:33]}  d5 {[%clk 0:01:45]} 26. Rxe5 {[%clk 0:01:26]}  dxc4 {[%clk 0:01:39]} 27. bxc4 {[%clk 0:01:22]}  Qxc4 {[%clk 0:01:33]} 28. Nd6 {[%clk 0:01:22]}  Ra1+ {[%clk 0:00:39]} 29. Kh2 {[%clk 0:01:22]}  Qh4 {[%clk 0:00:26]} 30. Rg5 {[%clk 0:01:21]}  Kf8 {[%clk 0:00:12]} 31. Nf5 {[%clk 0:01:15]}  gxf5 {[%clk 0:00:10]} 32. Qd8+ {[%clk 0:00:51]}  Ne8 {[%clk 0:00:08]} 33. Rg8+ {[%clk 0:00:52]}  Kxg8 {[%clk 0:00:09]} 34. Qxh4 {[%clk 0:00:53]}  Ra8 {[%clk 0:00:08]} 35. Qg5+ {[%clk 0:00:49]}  Ng7 {[%clk 0:00:08]} 36. h4 {[%clk 0:00:49]}  h5 {[%clk 0:00:08]} 37. Qf6 {[%clk 0:00:47]}  Re8 {[%clk 0:00:08]} 38. Qb2 {[%clk 0:00:47]}  Re6 {[%clk 0:00:08]} 39. f3 {[%clk 0:00:47]}  Kh7 {[%clk 0:00:09]} 40. Kg3 {[%clk 0:00:46]}  Kg6 {[%clk 0:00:06]} 41. Qc1 {[%clk 0:00:43]}  f6 {[%clk 0:00:07]} 42. Kf2 {[%clk 0:00:43]}  Re8 {[%clk 0:00:07]} 43. Qc2 {[%clk 0:00:40]}  Kf7 {[%clk 0:00:05]} 44. Qc6 {[%clk 0:00:35]}  Re6 {[%clk 0:00:05]} 45. Qa4 {[%clk 0:00:35]}  Re7 {[%clk 0:00:06]} 46. Qc4+ {[%clk 0:00:34]}  Re6 {[%clk 0:00:06]} 47. Qb3 {[%clk 0:00:33]}  Kg6 {[%clk 0:00:06]} 48. Qb7 {[%clk 0:00:33]}  Re8 {[%clk 0:00:06]} 49. Qb1 {[%clk 0:00:34]}  Re6 {[%clk 0:00:06]} 50. g4 {[%clk 0:00:33]}  Re5 {[%clk 0:00:03]} 51. gxh5+ {[%clk 0:00:28]}  Nxh5 {[%clk 0:00:04]} 52. Qb8 {[%clk 0:00:25]}  f4 {[%clk 0:00:04]} 53. Qg8+ {[%clk 0:00:24]}  Kh6 {[%clk 0:00:04]} 54. Qc8 {[%clk 0:00:19]}  Kg6 {[%clk 0:00:05]} 55. Qc2+ {[%clk 0:00:19]}  Kh6 {[%clk 0:00:06]} 56. Qb1 {[%clk 0:00:20]}  Kg7 {[%clk 0:00:06]} 57. Kg2 {[%clk 0:00:18]}  Kh6 {[%clk 0:00:07]} 58. Kh3 {[%clk 0:00:18]}  Re7 {[%clk 0:00:05]} 59. Qb8 {[%clk 0:00:18]}  Re5 {[%clk 0:00:06]} 60. Qh8+ {[%clk 0:00:18]}  Kg6 {[%clk 0:00:06]} 61. Kg4 {[%clk 0:00:18]}  Ng7 {[%clk 0:00:06]} 62. Qg8 {[%clk 0:00:17]}  Kh6 {[%clk 0:00:03]} 63. Kxf4 {[%clk 0:00:11]}  Nh5+ {[%clk 0:00:04]} 64. Kg4 {[%clk 0:00:10]}  Ng7 {[%clk 0:00:04]} 65. f4 {[%clk 0:00:08]}  Ra5 {[%clk 0:00:02]} 66. Qh8+ {[%clk 0:00:06]}  Kg6 {[%clk 0:00:02]} 67. Qc8 {[%clk 0:00:05]}  f5+ {[%clk 0:00:03]} 68. Kg3 {[%clk 0:00:05]}  Ra3+ {[%clk 0:00:03]} 69. Kg2 {[%clk 0:00:06]}  Re3 {[%clk 0:00:03]} 70. Qc6+ {[%clk 0:00:06]}  Kh5 {[%clk 0:00:03]} 71. Qf6 {[%clk 0:00:05]}  Re2+ {[%clk 0:00:01]} 72. Kf3 {[%clk 0:00:05]}  Rh2 {[%clk 0:00:02]} 73. Qg5# {[%clk 0:00:06]} 1-0


[Site "https://www.chess.com"]

[Event "Titled Tuesday Blitz February 14 Late 2023"]
[White "Rasulov, Vugar"]
[Black "Avinash, Ramesh"]
[WhiteFideId "13402390"]
[BlackFideId "45018340"]
[WhiteElo "2523"]
[BlackElo "2319"]
[Result "1/2-1/2"]
[Round "07"]
[TimeControl "180+2"]
[Date "2023.02.14"]
[WhiteClock "0:00:04"]
[BlackClock "0:00:02"]

1. Nf3 {[%clk 0:03:00]}  Nf6 {[%clk 0:02:58]} 2. c4 {[%clk 0:03:01]}  g6 {[%clk 0:02:59]} 3. b3 {[%clk 0:02:59]}  Bg7 {[%clk 0:02:59]} 4. Bb2 {[%clk 0:03:00]}  O-O {[%clk 0:03:00]} 5. g3 {[%clk 0:03:00]}  c6 {[%clk 0:03:00]} 6. Bg2 {[%clk 0:03:00]}  d5 {[%clk 0:03:00]} 7. O-O {[%clk 0:03:01]}  a5 {[%clk 0:03:00]} 8. d3 {[%clk 0:03:00]}  a4 {[%clk 0:02:59]} 9. Na3 {[%clk 0:02:56]}  axb3 {[%clk 0:02:48]} 10. axb3 {[%clk 0:02:57]}  Bg4 {[%clk 0:02:47]} 11. Qd2 {[%clk 0:02:42]}  Nbd7 {[%clk 0:02:42]} 12. Rfb1 {[%clk 0:02:40]}  Bxf3 {[%clk 0:02:38]} 13. Bxf3 {[%clk 0:02:41]}  e6 {[%clk 0:02:39]} 14. b4 {[%clk 0:02:37]}  Ne8 {[%clk 0:02:36]} 15. Bxg7 {[%clk 0:02:26]}  Nxg7 {[%clk 0:02:35]} 16. b5 {[%clk 0:02:27]}  Qf6 {[%clk 0:02:31]} 17. Qf4 {[%clk 0:02:08]}  Qxf4 {[%clk 0:02:25]} 18. gxf4 {[%clk 0:02:09]}  Nf5 {[%clk 0:02:22]} 19. e3 {[%clk 0:02:09]}  Nc5 {[%clk 0:02:16]} 20. bxc6 {[%clk 0:02:06]}  bxc6 {[%clk 0:02:15]} 21. d4 {[%clk 0:02:03]}  Nd7 {[%clk 0:02:05]} 22. c5 {[%clk 0:02:02]}  Rfb8 {[%clk 0:02:04]} 23. Nc2 {[%clk 0:01:51]}  Rxa1 {[%clk 0:02:01]} 24. Rxa1 {[%clk 0:01:52]}  Nf6 {[%clk 0:02:01]} 25. Be2 {[%clk 0:01:46]}  Ne4 {[%clk 0:01:57]} 26. Bd3 {[%clk 0:01:46]}  Rb3 {[%clk 0:01:50]} 27. Ne1 {[%clk 0:01:39]}  Nh4 {[%clk 0:01:45]} 28. Rb1 {[%clk 0:01:32]}  Rxb1 {[%clk 0:01:43]} 29. Bxb1 {[%clk 0:01:33]}  Nd2 {[%clk 0:01:42]} 30. Bc2 {[%clk 0:01:31]}  Ndf3+ {[%clk 0:01:34]} 31. Nxf3 {[%clk 0:01:31]}  Nxf3+ {[%clk 0:01:35]} 32. Kf1 {[%clk 0:01:32]}  Nxh2+ {[%clk 0:01:34]} 33. Kg2 {[%clk 0:01:26]}  Ng4 {[%clk 0:01:35]} 34. Ba4 {[%clk 0:01:27]}  Nf6 {[%clk 0:01:25]} 35. Bxc6 {[%clk 0:01:27]}  Kf8 {[%clk 0:01:26]} 36. f3 {[%clk 0:01:23]}  Ke7 {[%clk 0:01:26]} 37. Ba4 {[%clk 0:01:15]}  Kd8 {[%clk 0:01:22]} 38. Bc2 {[%clk 0:01:02]}  Nd7 {[%clk 0:01:18]} 39. Kg3 {[%clk 0:01:01]}  h6 {[%clk 0:01:17]} 40. e4 {[%clk 0:00:58]}  Nf6 {[%clk 0:01:16]} 41. f5 {[%clk 0:00:40]}  exf5 {[%clk 0:01:10]} 42. exf5 {[%clk 0:00:39]}  g5 {[%clk 0:01:07]} 43. Bb3 {[%clk 0:00:38]}  Nh5+ {[%clk 0:01:03]} 44. Kf2 {[%clk 0:00:33]}  Nf4 {[%clk 0:00:57]} 45. Bc2 {[%clk 0:00:29]}  f6 {[%clk 0:00:53]} 46. Ba4 {[%clk 0:00:28]}  h5 {[%clk 0:00:52]} 47. Bc6 {[%clk 0:00:22]}  h4 {[%clk 0:00:51]} 48. Bb5 {[%clk 0:00:19]}  Kc7 {[%clk 0:00:52]} 49. Be8 {[%clk 0:00:18]}  h3 {[%clk 0:00:48]} 50. Kg3 {[%clk 0:00:15]}  Ne2+ {[%clk 0:00:47]} 51. Kxh3 {[%clk 0:00:15]}  Nxd4 {[%clk 0:00:47]} 52. Kg4 {[%clk 0:00:16]}  Nc6 {[%clk 0:00:34]} 53. f4 {[%clk 0:00:11]}  gxf4 {[%clk 0:00:31]} 54. Kxf4 {[%clk 0:00:12]}  Na5 {[%clk 0:00:26]} 55. Kg4 {[%clk 0:00:07]}  Nb3 {[%clk 0:00:26]} 56. Kh5 {[%clk 0:00:08]}  Nxc5 {[%clk 0:00:26]} 57. Kg6 {[%clk 0:00:08]}  Ne4 {[%clk 0:00:26]} 58. Ba4 {[%clk 0:00:06]}  Kd6 {[%clk 0:00:27]} 59. Kh5 {[%clk 0:00:06]}  Ke5 {[%clk 0:00:28]} 60. Kg4 {[%clk 0:00:06]}  Nd6 {[%clk 0:00:25]} 61. Bc2 {[%clk 0:00:07]}  Nc4 {[%clk 0:00:26]} 62. Kf3 {[%clk 0:00:06]}  d4 {[%clk 0:00:26]} 63. Bd3 {[%clk 0:00:05]}  Ne3 {[%clk 0:00:26]} 64. Bb1 {[%clk 0:00:06]}  Nxf5 {[%clk 0:00:27]} 65. Bd3 {[%clk 0:00:06]}  Nd6 {[%clk 0:00:27]} 66. Bc2 {[%clk 0:00:07]}  f5 {[%clk 0:00:28]} 67. Bd3 {[%clk 0:00:07]}  Ne4 {[%clk 0:00:23]} 68. Bc2 {[%clk 0:00:07]}  Nc5 {[%clk 0:00:24]} 69. Bb1 {[%clk 0:00:06]}  Ne6 {[%clk 0:00:20]} 70. Bd3 {[%clk 0:00:05]}  Ng5+ {[%clk 0:00:21]} 71. Kg3 {[%clk 0:00:05]}  f4+ {[%clk 0:00:20]} 72. Kg4 {[%clk 0:00:06]}  Ne4 {[%clk 0:00:21]} 73. Kf3 {[%clk 0:00:06]}  Nd2+ {[%clk 0:00:21]} 74. Ke2 {[%clk 0:00:06]}  Nb3 {[%clk 0:00:22]} 75. Bc2 {[%clk 0:00:05]}  Nc1+ {[%clk 0:00:17]} 76. Kd2 {[%clk 0:00:04]}  Na2 {[%clk 0:00:17]} 77. Ke2 {[%clk 0:00:02]}  Nb4 {[%clk 0:00:11]} 78. Bg6 {[%clk 0:00:03]}  Kf6 {[%clk 0:00:10]} 79. Be4 {[%clk 0:00:03]}  Kg5 {[%clk 0:00:10]} 80. Kf3 {[%clk 0:00:03]}  d3 {[%clk 0:00:10]} 81. Bh7 {[%clk 0:00:04]}  Nc6 {[%clk 0:00:06]} 82. Be4 {[%clk 0:00:01]}  Ne5+ {[%clk 0:00:07]} 83. Kf2 {[%clk 0:00:02]}  Kg4 {[%clk 0:00:05]} 84. Bd5 {[%clk 0:00:02]}  f3 {[%clk 0:00:04]} 85. Ke3 {[%clk 0:00:03]}  Kg3 {[%clk 0:00:04]} 86. Bxf3 {[%clk 0:00:04]}  Nxf3 {[%clk 0:00:02]} 87. Kxd3 {[%clk 0:00:04]} 1/2-1/2


[Site "https://www.chess.com"]

[Event "Titled Tuesday Blitz February 14 Late 2023"]
[White "Baskakov, Egor"]
[Black "Melkumyan, Hrant"]
[WhiteFideId "24197866"]
[BlackFideId "13302485"]
[WhiteElo "2215"]
[BlackElo "2645"]
[Result "0-1"]
[Round "07"]
[TimeControl "180+2"]
[Date "2023.02.14"]
[WhiteClock "0:00:12"]
[BlackClock "0:00:09"]

1. e4 {[%clk 0:03:00]}  c5 {[%clk 0:02:59]} 2. Nf3 {[%clk 0:03:00]}  Nc6 {[%clk 0:02:59]} 3. Nc3 {[%clk 0:03:00]}  e5 {[%clk 0:02:58]} 4. Nd5 {[%clk 0:03:00]}  d6 {[%clk 0:02:53]} 5. c3 {[%clk 0:02:59]}  Nf6 {[%clk 0:02:52]} 6. d4 {[%clk 0:02:59]}  Be7 {[%clk 0:02:41]} 7. dxe5 {[%clk 0:02:58]}  dxe5 {[%clk 0:02:38]} 8. Nxf6+ {[%clk 0:02:57]}  Bxf6 {[%clk 0:02:36]} 9. Qc2 {[%clk 0:02:56]}  O-O {[%clk 0:02:36]} 10. Bc4 {[%clk 0:02:57]}  Qc7 {[%clk 0:02:26]} 11. Be3 {[%clk 0:02:56]}  Ne7 {[%clk 0:02:14]} 12. O-O {[%clk 0:02:54]}  Bd7 {[%clk 0:02:13]} 13. Rad1 {[%clk 0:02:52]}  b5 {[%clk 0:02:11]} 14. Bd5 {[%clk 0:02:51]}  Nxd5 {[%clk 0:02:03]} 15. exd5 {[%clk 0:02:51]}  Rfe8 {[%clk 0:01:53]} 16. Nd2 {[%clk 0:02:45]}  Be7 {[%clk 0:01:49]} 17. Ne4 {[%clk 0:02:38]}  Bd6 {[%clk 0:01:48]} 18. Nxd6 {[%clk 0:02:22]}  Qxd6 {[%clk 0:01:47]} 19. f4 {[%clk 0:02:22]}  Rac8 {[%clk 0:01:19]} 20. fxe5 {[%clk 0:02:18]}  Qxe5 {[%clk 0:01:19]} 21. Bf4 {[%clk 0:02:17]}  Qe2 {[%clk 0:01:16]} 22. Rd2 {[%clk 0:02:09]}  Qe4 {[%clk 0:01:16]} 23. Qd1 {[%clk 0:01:45]}  a5 {[%clk 0:01:06]} 24. Rdf2 {[%clk 0:01:43]}  b4 {[%clk 0:01:05]} 25. Bg3 {[%clk 0:01:32]}  f6 {[%clk 0:01:04]} 26. Rf4 {[%clk 0:01:07]}  Qe3+ {[%clk 0:01:03]} 27. Kh1 {[%clk 0:01:07]}  bxc3 {[%clk 0:01:00]} 28. R4f3 {[%clk 0:01:07]}  Qd2 {[%clk 0:00:51]} 29. Rxc3 {[%clk 0:01:04]}  Qxb2 {[%clk 0:00:49]} 30. Rb3 {[%clk 0:00:58]}  Qxa2 {[%clk 0:00:49]} 31. Rb7 {[%clk 0:00:59]}  Rcd8 {[%clk 0:00:38]} 32. Bc7 {[%clk 0:00:48]}  Bc8 {[%clk 0:00:38]} 33. Ra7 {[%clk 0:00:44]}  Rxd5 {[%clk 0:00:38]} 34. Qf3 {[%clk 0:00:36]}  Rf5 {[%clk 0:00:34]} 35. Bf4 {[%clk 0:00:34]}  Qc4 {[%clk 0:00:28]} 36. g4 {[%clk 0:00:23]}  Be6 {[%clk 0:00:18]} 37. Kg1 {[%clk 0:00:17]}  Bd5 {[%clk 0:00:16]} 38. Qf2 {[%clk 0:00:14]}  Re2 {[%clk 0:00:10]} 39. Ra8+ {[%clk 0:00:12]}  Bxa8 {[%clk 0:00:09]} 0-1


[Site "https://www.chess.com"]